bitfinex/quotes_SOLUSD_20250210
["timestamp","ask_amount","ask_price","bid_price","bid_amount"]
[1739155397793,0.03,198.34,198.32,12.21896353]
[1739155397998,0.03,198.34,198.33,25.63081206]
[1739155398212,0.03,198.34,198.33,25.75630206]
[1739155398903,0.0001,198.34,198.33,29.91539206]
[1739155399204,0.03,198.38,198.33,29.91539206]
[1739155399205,0.0001,198.38,198.37,20.25098]
[1739155399407,0.0001,198.38,198.37,46.24308997]
[1739155399705,0.0001,198.38,198.37,45.63081206]
[1739155400111,0.0001,198.38,198.37,32.21896353]
[1739155400612,0.0001,198.38,198.37,45.63081206]
[1739155400787,0.0001,198.38,198.37,45.75630206]
[1739155400980,0.0001,198.38,198.37,49.78910206]
[1739155401609,0.0001,198.38,198.37,45.63081206]
[1739155403108,0.0001,198.38,198.36,12.21896353]
[1739155403289,0.0001,198.38,198.35,0.1711482]
[1739155403290,0.0001,198.38,198.37,12.21896353]
[1739155403504,0.0001,198.38,198.37,25.63081206]
[1739155404419,0.0001,198.38,198.37,12.21896353]
[1739155405027,0.0001,198.38,198.36,12.21896353]
[1739155405315,0.0001,198.38,198.37,12.21896353]
[1739155412511,0.0001,198.38,198.35,0.1711482]
[1739155412512,12.21906353,198.38,198.35,0.1711482]
[1739155412702,12.21896353,198.37,198.35,0.1711482]
[1739155413033,12.21896353,198.37,198.3,12.21896353]
[1739155413215,4.033,198.36,198.3,12.21896353]
[1739155413605,16.25186353,198.37,198.3,12.21896353]
[1739155414929,16.25186353,198.37,198.24,6.4575]
[1739155414930,12.21896353,198.36,198.28,12.21896353]
[1739155415128,12.21896353,198.36,198.29,12.21896353]
[1739155415523,12.21896353,198.34,198.27,12.21896353]
[1739155416332,12.21896353,198.35,198.28,12.21896353]
[1739155416633,12.21896353,198.35,198.27,12.21896353]
[1739155416820,12.21896353,198.35,198.28,12.21896353]
[1739155417143,4.0334,198.34,198.27,12.21896353]
[1739155417529,12.21896353,198.35,198.27,12.21896353]
[1739155417850,0.94561469,198.38,198.34,7.63427912]
[1739155417851,0.0001,198.38,198.34,7.63427912]
[1739155418134,0.0001,198.38,198.37,7.63427912]
[1739155419128,0.0001,198.38,198.37,11.66707912]
[1739155419450,0.0001,198.38,198.37,12.91805912]
[1739155419612,1.6623,198.52,198.45,12.1963209]
[1739155419812,5.6921,198.52,198.45,12.1963209]
[1739155420035,12.1963209,198.51,198.43,12.1963209]
[1739155420411,12.1963209,198.49,198.42,12.1963209]
[1739155420616,12.1963209,198.49,198.41,12.1963209]
[1739155421029,0.94480692,198.51,198.43,12.1963209]
[1739155421030,12.1963209,198.5,198.43,12.1963209]
[1739155421553,16.2265209,198.5,198.43,12.1963209]
[1739155421717,12.1963209,198.5,198.43,12.1963209]
[1739155422549,16.2265209,198.5,198.42,12.1963209]
[1739155422749,1.6623,198.52,198.45,12.1963209]
[1739155423044,1.6623,198.52,198.48,12.1963209]
[1739155423435,1.6623,198.52,198.49,12.1963209]
[1739155424245,0.03,198.54,198.48,12.1963209]
[1739155424413,0.03,198.54,198.47,12.1963209]
[1739155424617,12.1963209,198.52,198.45,12.1963209]
[1739155424831,12.1963209,198.53,198.45,12.1963209]
[1739155425025,12.1963209,198.51,198.44,12.1963209]
[1739155425226,0.03,198.54,198.5,12.1963209]
[1739155425411,0.03,198.54,198.51,0.36072919]
[1739155425620,0.03,198.54,198.52,13.41184853]
[1739155426027,0.03,198.54,198.53,12.55644788]
[1739155426212,0.03,198.54,198.53,16.2259209]
[1739155426623,0.03,198.54,198.53,29.63776943]
[1739155427228,0.03,198.54,198.53,29.88874943]
[1739155427442,0.03,198.54,198.53,30.88874943]
[1739155427639,0.03,198.54,198.53,29.88874943]
[1739155428148,0.03,198.58,198.57,20.0]
[1739155428354,0.03,198.58,198.57,49.99655633]
[1739155429342,7.06543155,198.72,198.61,20.0]
[1739155429343,4.0259,198.72,198.61,20.0]
[1739155429537,4.0259,198.72,198.67,12.1963209]
[1739155430129,4.0255,198.74,198.67,12.1963209]
[1739155430334,12.1963209,198.77,198.69,12.1963209]
[1739155430536,5.6867,198.79,198.72,12.1963209]
[1739155430732,1.6623,198.79,198.73,12.1963209]
[1739155430937,0.03,198.74,198.7,12.1963209]
[1739155431120,0.03,198.74,198.7,12.55484341]
[1739155431622,0.03,198.74,198.73,12.1963209]
[1739155431824,0.03,198.74,198.73,25.60816943]
[1739155432028,7.6690621,198.84,198.76,20.0]
[1739155432322,7.6690621,198.84,198.83,12.1963209]
[1739155432527,7.6690621,198.84,198.81,12.1963209]
[1739155432942,7.6690621,198.84,198.82,12.1963209]
[1739155433532,12.1963209,198.86,198.79,12.1963209]
[1739155434031,4.0224,198.89,198.84,12.1963209]
[1739155434239,4.0224,198.89,198.83,12.1963209]
[1739155434444,2.06861394,198.95,198.85,12.1963209]
[1739155434445,12.1963209,198.93,198.85,12.1963209]
[1739155434641,12.1963209,198.93,198.86,12.1963209]
[1739155435030,16.2176209,198.94,198.86,12.1963209]
[1739155435231,3.44736365,198.97,198.89,12.1963209]
[1739155435232,12.1963209,198.96,198.89,12.1963209]
[1739155435434,16.2172209,198.96,198.89,12.1963209]
[1739155435626,0.12549,198.95,198.92,7.86309083]
[1739155435826,0.12549,198.96,198.92,7.86309083]
[1739155436044,12.1963209,198.97,198.91,7.86309083]
[1739155436245,12.1963209,198.99,198.93,12.1963209]
[1739155436445,12.1963209,198.99,198.91,8.86309083]
[1739155436446,12.1963209,199.03,198.95,13.1963209]
[1739155436841,12.1963209,199.03,198.96,1.0]
[1739155437192,0.12549,199.02,198.93,8.86309083]
[1739155437331,12.1963209,199.0,198.95,1.0]
[1739155437845,12.1963209,199.01,198.95,1.0]
[1739155438225,12.1963209,199.01,198.97,1.0]
[1739155438427,12.1963209,198.99,198.94,1.0]
[1739155438848,12.1963209,198.99,198.93,2.0]
[1739155439048,12.1963209,198.99,198.94,1.0]
[1739155439352,12.1963209,198.98,198.93,2.0]
[1739155439546,12.1963209,198.99,198.94,1.0]
[1739155439926,16.2159209,199.03,198.99,1.0]
[1739155440136,4.0186,199.07,199.01,14.1963209]
[1739155440327,4.2644,199.09,199.05,1.0]
[1739155440532,0.246,199.09,199.04,1.0]
[1739155440741,0.246,199.09,199.06,1.0]
[1739155440971,0.246,199.09,199.05,2.0]
[1739155441261,0.246,199.09,199.08,1.0]
[1739155441641,0.246,199.09,199.08,1.521]
[1739155441841,0.246,199.09,199.08,13.7173209]
[1739155442065,0.246,199.09,199.08,13.3980209]
[1739155442569,0.246,199.09,199.08,17.4164209]
[1739155442766,0.246,199.09,199.08,29.6127418]
[1739155442970,16.2120209,199.22,199.14,12.3980209]
[1739155443179,16.2120209,199.22,199.16,1.0]
[1739155443469,12.1963209,199.2,199.14,1.2017]
[1739155443669,12.1963209,199.22,199.17,1.2017]
[1739155443851,12.1963209,199.23,199.19,0.2017]
[1739155444050,16.2112209,199.26,199.2,0.2017]
[1739155444269,16.2112209,199.26,199.19,1.2017]
[1739155444448,12.1963209,199.27,199.23,1.0]
[1739155444851,12.1963209,199.28,199.23,1.0]
[1739155445150,12.1963209,199.26,199.21,1.0]
[1739155445464,12.1963209,199.27,199.21,1.0]
[1739155445765,12.1963209,199.22,199.15,1.2017]
[1739155445943,0.12549,199.2,199.14,0.2017]
[1739155446143,12.1963209,199.2,199.14,0.2017]
[1739155446342,12.1963209,199.18,199.12,0.2017]
[1739155446542,0.12549,199.16,199.11,0.2017]
[1739155446758,12.1963209,199.16,199.1,0.2017]
[1739155446944,0.25098,199.17,199.06,12.3980209]
[1739155447270,0.25098,199.11,199.04,12.1963209]
[1739155447569,0.25098,199.11,199.01,7.86309083]
[1739155447570,0.25098,199.05,199.01,7.86309083]
[1739155447748,0.12549,199.02,199.01,7.86309083]
[1739155448074,0.12549,199.02,198.97,0.2017]
[1739155448243,0.12549,199.02,198.97,1.2017]
[1739155448642,19.71986215,199.05,199.03,1.0]
[1739155448868,19.71986215,199.12,199.06,1.0]
[1739155449058,4.0168,199.16,199.07,0.2017]
[1739155449059,0.25098,199.13,199.07,0.2017]
[1739155449463,19.71986215,199.18,199.12,1.2017]
[1739155449654,19.71986215,199.22,199.15,1.0]
[1739155449855,19.71986215,199.22,199.16,1.0]
[1739155450341,19.97084215,199.19,199.13,0.2017]
[1739155450545,19.71986215,199.15,199.1,1.2017]
[1739155450766,19.97084215,199.17,199.1,1.0]
[1739155451156,19.71986215,199.17,199.13,1.0]
[1739155451345,19.71986215,199.19,199.14,0.2017]
[1739155451541,19.71986215,199.19,199.13,1.2017]
[1739155452872,19.71986215,199.19,199.13,1.0]
[1739155453870,23.98734215,199.18,199.1,20.92156215]
[1739155454068,19.71986215,199.16,199.11,0.2017]
[1739155454271,19.71986215,199.16,199.1,20.92156215]
[1739155454568,19.71986215,199.16,199.1,1.2017]
[1739155454977,4.26748,199.18,198.91,19.71986215]
[1739155454978,0.25098,199.02,198.91,19.71986215]
[1739155455154,19.71986215,199.02,198.93,19.71986215]
[1739155455358,19.71986215,199.04,198.95,19.71986215]
[1739155455883,23.73926215,199.04,198.95,19.71986215]
[1739155456385,19.71986215,199.02,198.95,19.71986215]
[1739155456562,19.71986215,198.98,198.89,19.71986215]
[1739155456901,19.71986215,198.96,198.89,19.71986215]
[1739155457255,1.25098,199.03,198.87,4.0226]
[1739155457256,19.71986215,199.0,198.91,19.71986215]
[1739155457465,23.73926215,199.04,198.96,19.71986215]
[1739155457653,0.25098,199.03,198.96,19.71986215]
[1739155457855,23.73926215,199.04,198.96,19.71986215]
[1739155458091,19.71986215,199.04,198.96,19.71986215]
[1739155458254,19.71986215,199.08,199.0,19.71986215]
[1739155458685,19.71986215,199.1,199.02,19.71986215]
[1739155458996,1.0,199.16,198.95,0.75366394]
[1739155458997,0.03,199.19,199.09,39.4397243]
[1739155459284,33.79024479,199.4,199.17,1.0]
[1739155459285,19.71986215,199.33,199.17,1.0]
[1739155459599,19.71986215,199.33,199.24,19.71986215]
[1739155460759,0.25098,199.34,199.26,19.71986215]
[1739155460958,19.71986215,199.33,199.24,19.71986215]
[1739155461686,23.73336215,199.33,199.24,19.71986215]
[1739155461979,19.71986215,199.33,199.24,19.71986215]
[1739155463061,19.71986215,199.33,199.26,19.71986215]
[1739155463265,1.0,199.39,199.3,19.71986215]
[1739155463266,19.71986215,199.39,199.3,19.71986215]
[1739155463474,1.0,199.46,199.32,19.71986215]
[1739155463475,19.71986215,199.41,199.32,19.71986215]
[1739155463675,19.71986215,199.41,199.28,4.0143]
[1739155463676,19.71986215,199.43,199.34,19.71986215]
[1739155463873,10.027,199.47,199.3,19.71986215]
[1739155463874,4.0104,199.48,199.3,20.47232245]
[1739155464081,19.71986215,199.44,199.36,19.71986215]
[1739155464576,4.0104,199.48,199.32,19.71986215]
[1739155464577,19.71986215,199.4,199.32,19.71986215]
[1739155465068,0.25098,199.39,199.32,19.71986215]
[1739155465269,19.71986215,199.45,199.35,19.71986215]
[1739155465517,19.71986215,199.45,199.37,19.71986215]
[1739155465694,4.0108,199.46,199.39,19.71986215]
[1739155466196,4.0108,199.46,199.3,24.48605718]
[1739155466197,19.71986215,199.45,199.37,19.71986215]
[1739155466569,0.25098,199.44,199.37,19.71986215]
[1739155467305,4.0112,199.44,199.37,19.71986215]
[1739155467466,0.03,199.41,199.37,19.71986215]
[1739155467663,0.03,199.41,199.39,19.71986215]
[1739155468383,0.03,199.41,199.4,19.71986215]
[1739155468583,19.71986215,199.69,199.51,1.0]
[1739155468783,19.71986215,199.69,199.61,19.71986215]
[1739155469196,19.71986215,199.69,199.59,19.71986215]
[1739155469371,19.71986215,199.67,199.59,19.71986215]
[1739155469769,0.173,199.66,199.57,19.71986215]
[1739155469965,0.173,199.66,199.54,4.0091]
[1739155469966,0.25098,199.62,199.55,19.71986215]
[1739155470187,0.25098,199.62,199.52,19.71986215]
[1739155470188,19.71986215,199.6,199.52,19.71986215]
[1739155470508,0.173,199.64,199.59,19.71986215]
[1739155471580,0.173,199.64,199.57,19.71986215]
[1739155472111,1.173,199.64,199.55,19.71986215]
[1739155472411,19.71986215,199.56,199.42,19.71986215]
[1739155472704,19.71986215,199.5,199.34,0.75207226]
[1739155472869,20.71986215,199.6,199.34,0.75207226]
[1739155472870,21.71986215,199.6,199.43,19.71986215]
[1739155473076,1.0,199.59,199.46,19.71986215]
[1739155473309,19.71986215,199.54,199.46,19.71986215]
[1739155473490,19.71986215,199.48,199.4,19.71986215]
[1739155473689,19.71986215,199.46,199.38,19.71986215]
[1739155473887,19.71986215,199.44,199.36,19.71986215]
[1739155474725,19.71986215,199.48,199.4,19.71986215]
[1739155474904,0.25098,199.47,199.4,19.71986215]
[1739155475395,0.25098,199.47,199.38,19.71986215]
[1739155475697,19.71986215,199.42,199.34,19.71986215]
[1739155475898,0.12549,199.43,199.32,19.71986215]
[1739155475899,19.71986215,199.4,199.32,19.71986215]
[1739155477600,13.41184853,199.46,199.36,19.71986215]
[1739155477601,19.71986215,199.42,199.36,19.71986215]
[1739155477800,0.25098,199.41,199.36,19.71986215]
[1739155478103,19.71986215,199.44,199.36,19.71986215]
[1739155478303,0.25098,199.43,199.36,19.71986215]
[1739155478802,0.25098,199.41,199.34,19.71986215]
[1739155479004,0.25098,199.39,199.32,19.71986215]
[1739155479187,0.25098,199.39,199.36,0.063]
[1739155479388,19.71986215,199.4,199.36,0.063]
[1739155479585,23.73066215,199.46,199.38,19.71986215]
[1739155479888,23.73066215,199.46,199.36,0.063]
[1739155479889,0.25098,199.43,199.36,19.78286215]
[1739155480110,19.71986215,199.46,199.38,19.71986215]
[1739155480295,111.5448,199.56,199.36,0.063]
[1739155480296,4.0105,199.48,199.36,0.063]
[1739155480482,19.71986215,199.49,199.41,19.71986215]
[1739155480679,19.97084215,199.44,199.36,19.78286215]
[1739155481110,19.71986215,199.42,199.36,0.063]
[1739155481586,0.25098,199.41,199.36,0.063]
[1739155481906,19.71986215,199.38,199.36,0.063]
[1739155482611,0.25098,199.37,199.36,0.063]
[1739155483394,19.97084215,199.37,199.36,0.063]
[1739155483598,23.98344215,199.37,199.36,0.063]
[1739155484510,38.39529068,199.37,199.36,0.0001]
[1739155484893,0.25098,199.32,199.21,19.71986215]
[1739155485202,19.71986215,199.3,199.21,19.71986215]
[1739155485910,19.71986215,199.28,199.21,19.71986215]
[1739155486216,19.97084215,199.3,199.23,19.71986215]
[1739155486395,23.73326215,199.33,199.25,19.71986215]
[1739155486720,0.25098,199.32,199.25,19.71986215]
[1739155486914,23.73326215,199.33,199.19,19.71986215]
[1739155486915,19.71986215,199.27,199.19,19.71986215]
[1739155487120,19.71986215,199.27,199.17,30.35386215]
[1739155487293,19.71986215,199.27,199.19,19.71986215]
[1739155487490,19.71986215,199.23,199.15,19.71986215]
[1739155488093,4.0149,199.26,199.19,19.71986215]
[1739155488291,8.018,199.34,199.19,19.71986215]
[1739155488292,19.71986215,199.35,199.2,0.75301934]
[1739155488597,19.71986215,199.38,199.29,19.71986215]
[1739155489308,19.71986215,199.36,199.29,19.71986215]
[1739155489608,23.73236215,199.38,199.29,19.71986215]
[1739155490191,19.71986215,199.36,199.27,19.71986215]
[1739155490602,30.0,199.46,199.32,19.71986215]
[1739155490603,19.71986215,199.41,199.32,19.71986215]
[1739155490807,19.71986215,199.43,199.34,19.71986215]
[1739155490999,23.73136215,199.43,199.34,19.71986215]
[1739155491412,0.03,199.38,199.34,23.73286215]
[1739155491694,0.03,199.38,199.3,19.71986215]
[1739155492832,4.0424,199.38,199.3,19.71986215]
[1739155493195,19.71986215,199.37,199.28,19.71986215]
[1739155494226,19.71986215,199.35,199.26,23.73446215]
[1739155494423,19.71986215,199.35,199.26,19.71986215]
[1739155494625,19.71986215,199.33,199.26,19.71986215]
[1739155494828,19.71986215,199.31,199.24,19.71986215]
[1739155495115,19.71986215,199.29,199.23,6.6174]
[1739155495499,19.71986215,199.29,199.22,19.71986215]
[1739155495715,19.71986215,199.27,199.21,0.063]
[1739155496792,19.71986215,199.25,199.21,0.063]
[1739155496991,19.71986215,199.27,199.21,0.063]
[1739155497794,19.71986215,199.25,199.21,0.063]
[1739155497995,19.71986215,199.23,199.21,0.063]
[1739155498925,23.73536215,199.23,199.21,0.063]
[1739155499597,4.0155,199.23,199.21,0.063]
[1739155500003,23.73466215,199.27,199.21,0.063]
[1739155500615,19.71986215,199.23,199.21,0.063]
[1739155500819,4.0156,199.22,199.21,0.063]
[1739155501396,4.26658,199.22,199.21,0.063]
[1739155501793,19.71986215,199.25,199.21,0.063]
[1739155501995,19.71986215,199.29,199.22,19.71986215]
[1739155502221,19.71986215,199.35,199.28,19.71986215]
[1739155502417,23.73246215,199.37,199.28,19.71986215]
[1739155503126,0.03,199.36,199.28,19.71986215]
[1739155503825,0.03,199.36,199.32,19.71986215]
[1739155504013,0.03,199.36,199.28,4.0143]
[1739155504014,0.03,199.36,199.34,19.71986215]
[1739155504625,0.03,199.36,199.32,19.71986215]
[1739155505522,0.03,199.36,199.34,19.71986215]
[1739155505723,0.03,199.36,199.32,23.73336215]
[1739155506323,0.03,199.36,199.32,19.71986215]
[1739155506524,0.03,199.36,199.3,4.0139]
[1739155506525,0.03,199.36,199.3,19.71986215]
[1739155506820,0.03,199.36,199.28,4.0143]
[1739155506821,19.71986215,199.35,199.28,19.71986215]
[1739155507020,0.03,199.36,199.28,19.71986215]
[1739155507532,0.03,199.36,199.32,19.71986215]
[1739155508109,4.0429,199.36,199.28,19.71986215]
[1739155508720,4.0429,199.36,199.3,19.71986215]
[1739155509538,0.03,199.36,199.34,19.71986215]
[1739155510123,0.03,199.36,199.32,19.71986215]
[1739155510320,0.03,199.36,199.34,19.71986215]
[1739155511051,0.03,199.36,199.34,23.73286215]
[1739155511217,0.03,199.36,199.35,6.86586255]
[1739155511931,0.03,199.36,199.35,6.1136]
[1739155512320,0.03,199.36,199.35,6.86583366]
[1739155512521,0.03,199.36,199.35,20.27768219]
[1739155512719,0.03,199.38,199.35,6.86583366]
[1739155512915,0.03,199.38,199.37,20.0]
[1739155513238,0.03,199.38,199.37,39.71986215]
[1739155513440,0.03,199.38,199.37,20.47198976]
[1739155513643,0.03,199.38,199.35,6.1136]
[1739155513816,0.03,199.38,199.3,23.73386215]
[1739155514017,19.71986215,199.39,199.3,23.73386215]
[1739155514222,19.71986215,199.41,199.34,19.71986215]
[1739155514531,19.71986215,199.43,199.34,19.71986215]
[1739155515043,19.71986215,199.49,199.42,19.71986215]
[1739155515227,23.72966215,199.51,199.42,19.71986215]
[1739155515542,19.71986215,199.49,199.42,19.71986215]
[1739155516352,19.71986215,199.49,199.32,5.0136]
[1739155516353,19.71986215,199.43,199.36,19.71986215]
[1739155516641,19.71986215,199.41,199.32,19.71986215]
[1739155516821,19.71986215,199.39,199.32,19.71986215]
[1739155517018,19.71986215,199.39,199.3,19.71986215]
[1739155517345,19.71986215,199.39,199.32,19.71986215]
[1739155517739,19.71986215,199.41,199.32,19.71986215]
[1739155518350,4.012,199.4,199.32,19.71986215]
[1739155518726,4.012,199.4,199.3,19.71986215]
[1739155518727,19.71986215,199.39,199.3,19.71986215]
[1739155518927,19.71986215,199.39,199.32,19.71986215]
[1739155519823,23.73226215,199.39,199.32,19.71986215]
[1739155521034,19.71986215,199.41,199.34,19.71986215]
[1739155521245,21.0811,199.49,199.38,19.71986215]
[1739155521246,19.71986215,199.45,199.38,19.71986215]
[1739155521548,4.0104,199.48,199.4,19.71986215]
[1739155521858,4.0104,199.48,199.31,0.75228386]
[1739155521859,4.0104,199.48,199.42,19.71986215]
[1739155522342,23.76006215,199.49,199.42,19.71986215]
[1739155522538,23.76006215,199.49,199.4,19.71986215]
[1739155522743,19.71986215,199.43,199.34,19.71986215]
[1739155523153,19.71986215,199.43,199.36,19.71986215]
[1739155523850,19.71986215,199.47,199.4,19.71986215]
[1739155524028,23.73026215,199.48,199.41,19.71986215]
[1739155524226,4.0104,199.48,199.41,19.71986215]
[1739155524626,0.03,199.49,199.42,19.71986215]
[1739155524827,0.03,199.49,199.44,19.71986215]
[1739155525040,0.03,199.49,199.45,19.71986215]
[1739155525258,0.03,199.49,199.42,19.71986215]
[1739155525455,23.76016215,199.49,199.42,19.71986215]
[1739155525637,0.03,199.49,199.42,19.71986215]
[1739155525837,0.03,199.49,199.44,19.71986215]
[1739155526048,0.03,199.49,199.46,19.71986215]
[1739155526450,0.03,199.49,199.44,19.71986215]
[1739155526764,0.03,199.49,199.47,19.71986215]
[1739155528341,0.03,199.49,199.47,23.73036215]
[1739155528553,0.03,199.49,199.48,0.75174842]
[1739155528757,19.71986215,199.66,199.56,19.71986215]
[1739155528937,19.71986215,199.66,199.58,19.71986215]
[1739155529134,19.71986215,199.64,199.56,19.71986215]
[1739155529341,4.0062,199.69,199.52,19.71986215]
[1739155529342,19.71986215,199.6,199.52,19.71986215]
[1739155530161,0.173,199.64,199.59,19.71986215]
[1739155530344,0.173,199.64,199.63,19.71986215]
[1739155531145,0.173,199.64,199.62,26.37886215]
[1739155531456,0.173,199.64,199.59,19.71986215]
[1739155531664,0.173,199.64,199.6,19.71986215]
[1739155532044,0.173,199.64,199.63,19.71986215]
[1739155532240,0.173,199.64,199.62,19.71986215]
[1739155533062,0.173,199.64,199.6,19.71986215]
[1739155533452,0.173,199.64,199.63,19.71986215]
[1739155533662,1.5713,199.81,199.68,20.0]
[1739155533865,19.71986215,199.84,199.77,19.71986215]
[1739155534251,19.71986215,199.82,199.75,19.71986215]
[1739155534667,19.71986215,199.82,199.73,19.71986215]
[1739155535055,19.71986215,199.77,199.69,19.71986215]
[1739155535245,19.71986215,199.74,199.67,19.71986215]
[1739155535449,19.71986215,199.75,199.68,19.71986215]
[1739155535673,20.0,199.84,199.71,19.71986215]
[1739155535977,19.71986215,199.79,199.71,19.71986215]
[1739155536484,1.0,199.86,199.72,19.71986215]
[1739155536485,19.71986215,199.8,199.72,19.71986215]
[1739155536678,19.71986215,199.83,199.75,19.71986215]
[1739155536889,4.0032,199.84,199.73,19.71986215]
[1739155536890,19.71986215,199.81,199.73,19.71986215]
[1739155537486,19.71986215,199.83,199.75,19.71986215]
[1739155537655,19.71986215,199.87,199.79,19.71986215]
[1739155538162,19.71986215,199.85,199.77,19.71986215]
[1739155538387,19.71986215,199.85,199.77,23.72436215]
[1739155538855,0.25098,199.91,199.77,19.71986215]
[1739155538856,19.71986215,199.83,199.77,19.71986215]
[1739155539059,19.71986215,199.83,199.75,23.72466215]
[1739155539454,19.71986215,199.89,199.81,19.71986215]
[1739155539656,19.71986215,199.89,199.76,0.7507802]
[1739155539657,19.71986215,199.93,199.85,19.71986215]
[1739155540078,28.81809749,200.0,199.83,23.72306215]
[1739155540079,19.71986215,199.91,199.83,23.72306215]
[1739155540386,19.71986215,199.89,199.81,19.71986215]
[1739155540688,19.71986215,199.87,199.79,19.71986215]
[1739155540978,19.71986215,199.85,199.77,26.23366215]
[1739155541170,19.71986215,199.85,199.77,19.71986215]
[1739155541372,19.71986215,199.83,199.75,19.71986215]
[1739155542678,23.72326215,199.83,199.75,19.71986215]
[1739155542979,19.71986215,199.81,199.75,19.71986215]
[1739155543561,19.71986215,199.81,199.73,19.71986215]
[1739155543869,19.71986215,199.77,199.69,19.71986215]
[1739155544069,19.71986215,199.75,199.67,19.71986215]
[1739155544263,19.71986215,199.75,199.64,10.5208]
[1739155544264,19.71986215,199.73,199.65,19.71986215]
[1739155544467,19.71986215,199.71,199.63,19.71986215]
[1739155544668,19.71986215,199.69,199.61,19.71986215]
[1739155545372,19.71986215,199.7,199.63,19.71986215]
[1739155545677,19.71986215,199.7,199.58,6.5138]
[1739155545678,19.71986215,199.8,199.69,19.71986215]
[1739155545868,19.71986215,199.8,199.64,0.75130983]
[1739155545869,19.71986215,199.82,199.74,19.71986215]
[1739155546181,19.71986215,199.78,199.71,19.71986215]
[1739155546475,4.0046,199.77,199.71,19.71986215]
[1739155546683,4.0046,199.77,199.69,19.71986215]
[1739155546856,19.71986215,199.76,199.69,19.71986215]
[1739155547773,23.72476215,199.76,199.69,19.71986215]
[1739155547978,19.71986215,199.72,199.63,19.71986215]
[1739155548168,19.71986215,199.7,199.63,19.71986215]
[1739155548367,19.71986215,199.7,199.61,19.71986215]
[1739155548582,19.71986215,199.68,199.59,19.71986215]
[1739155548767,19.71986215,199.66,199.59,19.71986215]
[1739155549860,19.71986215,199.66,199.58,6.5138]
[1739155550059,19.71986215,199.64,199.57,19.71986215]
[1739155550366,4.0068,199.66,199.53,1.6256]
[1739155550367,19.71986215,199.6,199.53,19.71986215]
[1739155550875,14.0238,199.66,199.52,10.5233]
[1739155550876,19.71986215,199.64,199.55,19.71986215]
[1739155551076,19.71986215,199.66,199.59,19.71986215]
[1739155551385,23.72626215,199.68,199.59,19.71986215]
[1739155551876,19.71986215,199.66,199.59,19.71986215]
[1739155552077,19.71986215,199.64,199.55,23.72866215]
[1739155552675,19.71986215,199.64,199.55,19.71986215]
[1739155552862,19.71986215,199.6,199.53,19.71986215]
[1739155553478,19.71986215,199.62,199.53,19.71986215]
[1739155553664,19.71986215,199.66,199.58,19.71986215]
[1739155553862,19.71986215,199.64,199.56,19.71986215]
[1739155554077,19.71986215,199.62,199.56,19.71986215]
[1739155554680,23.72666215,199.66,199.58,19.71986215]
[1739155555186,19.71986215,199.64,199.56,19.78286215]
[1739155555483,19.71986215,199.68,199.6,19.71986215]
[1739155555884,23.72666215,199.66,199.58,19.71986215]
[1739155556279,19.71986215,199.64,199.56,19.78286215]
[1739155556484,19.71986215,199.64,199.56,23.79156215]
[1739155557592,23.72706215,199.64,199.56,23.79156215]
[1739155557763,23.72706215,199.64,199.56,19.78286215]
[1739155558387,19.71986215,199.64,199.56,23.79156215]
[1739155558585,19.71986215,199.66,199.58,19.71986215]
[1739155559691,23.72666215,199.66,199.58,19.71986215]
[1739155560489,19.71986215,199.64,199.56,23.79146215]
[1739155561003,4.007,199.65,199.58,19.71986215]
[1739155561165,19.84535215,199.64,199.56,19.78286215]
[1739155561366,4.0086,199.57,199.56,0.063]
[1739155561974,0.12549,199.56,199.49,0.063]
[1739155562178,19.71986215,199.51,199.49,0.063]
[1739155562575,0.12549,199.5,199.49,0.063]
[1739155562793,0.12549,199.5,199.39,0.063]
[1739155562968,19.71986215,199.52,199.44,19.71986215]
[1739155563367,19.71986215,199.46,199.39,0.063]
[1739155563567,19.71986215,199.42,199.39,0.063]
[1739155564187,19.71986215,199.4,199.39,0.063]
[1739155564999,19.71986215,199.42,199.39,0.063]
[1739155565968,19.71986215,199.4,199.39,0.063]
[1739155567310,39.6907043,199.4,199.39,0.063]
[1739155567676,0.25098,199.39,199.36,0.063]
[1739155567994,19.84535215,199.37,199.36,0.063]
[1739155568191,0.12549,199.36,199.22,19.71986215]
[1739155568497,19.71986215,199.3,199.21,0.063]
[1739155568695,19.71986215,199.3,199.21,4.0787]
[1739155569386,19.71986215,199.3,199.21,0.063]